[Event "Austrian Championship 2022"]
[Site "Vienna"]
[Date "2022.08.14"]
[Round "3.3"]
[White "Borrmann, Laurenz"]
[Black "Stanec, Nikolaus"]
[Result "0-1"]
[ECO "B39"]
[WhiteElo "2274"]
[BlackElo "2460"]
[Annotator "TA"]
[PlyCount "102"]
[EventDate "2022.08.12"]
[EventType "swiss"]
[EventCountry "AUT"]
[SourceTitle "playchess.com"]
[Source "ChessBase"]
[SourceQuality "1"]
[TimeControl "40/5400+30:1800+30"]

{[%evp 17,102,100,79,75,81,68,99,9,13,19,75,0,0,0,0,-12,0,0,0,0,0,-8,0,-34,-22,-94,-31,-57,-59,-70,-42,-151,-98,-123,-64,-60,-64,-66,-51,-52,-41,-93,-96,-224,-103,-203,-76,-90,-89,-82,-82,-94,-55,-283,-283,-283,-283,-283,-283,-277,-277,-277,-158,-369,-194,-1766,-1395,-4282,-3818,-6004,-4497,-12844,-12844,-12849,-12849,-12848,-12851,-29937,-29941,-12846,-12825,-29961,-29962,-6128,-5125,-5114,-5102]} 1. e4 {[%emt 0:00:03]} c5 {[%emt 0:04:13]} 2. Nf3 {[%emt 0:00:09]} g6 {[%emt 0:01:25]} 3. c4 {[%emt 0:00:25]} Nc6 {[%emt 0:00:55]} 4. d4 {[%emt 0:00:14]} cxd4 {[%emt 0:00:06]} 5. Nxd4 {[%emt 0:00:05]} Bg7 {[%emt 0:00:04]} 6. Be3 {[%emt 0:00:13]} Nf6 {[%emt 0:00:35]} 7. Nc3 {[%emt 0:00:13]} Ng4 {[%emt 0:01:12]} 8. Qxg4 {[%emt 0:00:10]} Bxd4 {[%emt 0:01:23]} 9. Bxd4 {[%emt 0:06:26]} Nxd4 {[%emt 0:00:08]} 10. O-O-O {[%emt 0:10:44] Prevents Nc2. B39: Sicilian: Maroczy Bind with 5...Bg7 and 7...Ng4.} e5 {[%emt 0:05:31]} 11. Qg3 {[%emt 0:04:03]} d6 {[%emt 0:03:16]} 12. Ne2 {[%emt 0:13:20]} (12. f4 $1 $16 {[%cal Rf4e5]}) 12... Nxe2+ $11 {[%emt 0:10:48]} 13. Bxe2 {[%emt 0:00:06] [#]} O-O $146 {[%emt 0:00:15]} (13... Be6 $11) ({Predecessor:} 13... Be6 14. Kb1 Qc7 15. Qa3 Qc5 16. Rxd6 {½-½ (16) Levin,F (2535)-Pajeken,W (2337) Hamburg 2001}) 14. Rd2 {[%emt 0:06:53]} ({White should try} 14. h4 $16) 14... Be6 {[%emt 0:02:16]} 15. Kb1 {[%emt 0:04:51]} b5 {[%emt 0:03:00]} 16. Rhd1 {[%emt 0:02:38]} bxc4 {[%emt 0:02:43]} 17. Rxd6 {[%emt 0:04:00]} Qa5 {[%emt 0:00:20] aiming for ...Rab8.} 18. Qc3 {[%emt 0:00:24]} Qc5 {[%emt 0:01:44]} 19. f3 {[%emt 0:00:30]} Rab8 {[%emt 0:01:57]} 20. h3 {[%emt 0:04:42]} a5 {[%emt 0:11:30]} 21. Ra6 {[%emt 0:04:12]} (21. R1d2 $11) 21... Rb4 {[%emt 0:03:38]} (21... Qf2 $17 22. Rxe6 Qxe2) 22. Rd2 {[%emt 0:01:08]} Rfb8 {[%emt 0:07:59]} 23. Kc1 $1 {[%emt 0:03:48]} ({Much weaker is} 23. Bd1 Bc8 24. Rf6 (24. Rd8+ $2 Kg7 $19) 24... Kg7 $17) 23... Ra4 $1 {[%emt 0:03:50]} ({Don't play} 23... Qg1+ 24. Bd1 $11) 24. Kb1 {[%emt 0:14:26]} (24. Rxe6 $1 $15 fxe6 25. b3) 24... Ra3 {[%emt 0:01:20]} (24... h5 $142) 25. Ra8 {[%emt 0:00:27]} Rxa8 {[%emt 0:06:16]} (25... Rxc3 $17 26. Rxb8+ Kg7 27. bxc3 h5) 26. Qxa3 $15 {[%emt 0:01:21]} Qxa3 {[%emt 0:01:42]} (26... Qf2 {feels hotter.} 27. g4 a4 28. Qc3 a3) 27. bxa3 $17 {[%emt 0:00:03][%mdl 4096] Endgame KRB-KRB} c3 $1 {[%emt 0:00:37]} 28. Rc2 {[%emt 0:00:07]} Rc8 {[%emt 0:00:06]} 29. Bb5 {[%emt 0:03:56]} (29. Ba6 $15 Rb8+ 30. Kc1) 29... f5 {[%emt 0:02:06] Black is more active.} 30. Kc1 {[%emt 0:00:52]} (30. Rc1 $17) 30... Kg7 {[%emt 0:01:33]} (30... f4 $1 $19 {has better winning chances. Threatens to win with ...Kg7.} 31. Ba4 Kg7) 31. Ba4 {[%emt 0:02:48]} (31. Ba6 $17 {keeps fighting.} Rc5 32. exf5 gxf5 33. Bd3) 31... Rc5 {[%emt 0:01:20]} (31... f4 $1 $19 {is more deadly. ...Kh6 is the strong threat.} 32. Rf2 Bc4) 32. Bb3 {[%emt 0:01:05]} Bc8 {[%emt 0:00:34]} 33. Re2 {[%emt 0:01:18]} Ba6 {[%emt 0:04:51]} 34. Re1 {[%emt 0:01:42]} c2 $1 {[%emt 0:01:28]} 35. Kd2 $2 {[%emt 0:08:02]} (35. exf5 $15 gxf5 36. Bxc2) 35... c1=Q+ {[%emt 0:01:31]} 36. Rxc1 {[%emt 0:00:06]} Rxc1 {[%emt 0:00:05]} 37. Kxc1 $19 {[%emt 0:00:04] KB-KB} Bf1 {[%emt 0:00:26]} 38. exf5 {[%emt 0:01:36]} gxf5 {[%emt 0:00:11][%cal Bg6f5,Bf5f4][%mdl 32]} 39. g3 {[%emt 0:02:08] [#]} Bxh3 {[%emt 0:00:41]} ({Black should play} 39... f4 $1 $19 {[%cal Rf4g3]} 40. gxf4 exf4) 40. Kd2 $2 {[%emt 0:00:40] [#]} (40. Bd5 $17 {was forced.}) 40... f4 $1 {[%emt 0:02:19]} 41. g4 {[%emt 0:04:51]} (41. gxf4 exf4 42. Ke1) 41... e4 {[%emt 0:03:08]} 42. fxe4 {[%emt 0:06:53]} Bxg4 {[%emt 0:00:20]} 43. e5 {[%emt 0:01:52]} h5 {[%emt 0:00:33]} 44. Ke1 {[%emt 0:02:35]} Kg6 {[%emt 0:03:55]} 45. Bc2+ {[%emt 0:03:59]} Kg5 {[%emt 0:03:58]} 46. Kf2 {[%emt 0:04:23]} Be6 {[%emt 0:02:47]} 47. Be4 {[%emt 0:03:12]} Bxa2 {[%emt 0:00:35]} 48. Kg2 {[%emt 0:01:07]} Be6 {[%emt 0:00:57] ( -> ...Bf5)} 49. Bf3 {[%emt 0:01:20]} Bg4 {[%emt 0:05:06]} 50. Be4 {[%emt 0:00:23]} f3+ {[%emt 0:02:36]} 51. Kf2 {[%emt 0:01:28]} Kf4 {[%emt 0:00:16][%csl LRe4,LRe5] Weighted Error Value: White=1.06/Black=0.15 (very precise)} 0-1

[Event "Austrian Championship 2022"]
[Site "Vienna"]
[Date "2022.08.14"]
[Round "3.3"]
[White "Mayrhuber, Tobias"]
[Black "Teuschler, Barbara"]
[Result "0-1"]
[ECO "C41"]
[WhiteElo "2010"]
[BlackElo "2097"]
[Annotator "NA RC"]
[PlyCount "62"]
[EventDate "2022.08.12"]
[EventType "swiss"]
[EventCountry "AUT"]
[SourceTitle "playchess.com"]
[Source "ChessBase"]
[SourceQuality "1"]
[TimeControl "40/5400+30:1800+30"]

1. e4 {[%emt 0:00:50]} e5 {[%emt 0:00:04]} 2. Nf3 {[%emt 0:00:31]} d6 {[%emt 0:00:04]} 3. d4 {[%emt 0:00:11]} exd4 {[%emt 0:00:04]} 4. Nxd4 {[%emt 0:00:07]} Nf6 {[%emt 0:00:04]} 5. Nc3 {[%emt 0:00:11]} Be7 $14 {[%emt 0:00:02]} 6. Bc4 {[%emt 0:03:14]} O-O {[%emt 0:00:04]} 7. Bb3 {[%emt 0:01:06]} Re8 {[%emt 0:01:33]} 8. O-O {[%emt 0:02:04]} Nbd7 {[%emt 0:03:03]} 9. f4 {[%emt 0:12:28]} Bf8 {[%emt 0:01:49]} 10. Nf3 {[%emt 0:01:24]} Nc5 {[%emt 0:07:19]} 11. Re1 {[%emt 0:04:18]} c6 {[%emt 0:03:32]} 12. Ng5 {[%emt 0:06:32]} Nxb3 {[%emt 0:01:38]} 13. axb3 {[%emt 0:00:06]} d5 {[%emt 0:15:41]} 14. h3 {[%emt 0:11:16]} h6 {[%emt 0:07:39]} 15. Nf3 {[%emt 0:00:35]} Qb6+ {[%emt 0:00:50]} 16. Kh2 {[%emt 0:07:44]} Nxe4 {[%emt 0:01:25]} 17. Be3 {[%emt 0:00:47]} Qc7 {[%emt 0:02:00]} 18. Ne5 {[%emt 0:02:15]} Bf5 {[%emt 0:09:40]} 19. Nxe4 {[%emt 0:02:46]} Bxe4 {[%emt 0:00:22]} 20. c3 {[%emt 0:02:25]} Bd6 {[%emt 0:03:07]} 21. g3 {[%emt 0:06:22]} a6 {[%emt 0:04:09]} 22. Nf3 {[%emt 0:04:45]} Rad8 {[%emt 0:12:05]} 23. b4 {[%emt 0:01:49]} Bxf3 {[%emt 0:05:35]} 24. Qxf3 {[%emt 0:00:06]} Re4 {[%emt 0:00:45]} 25. Bd4 {[%emt 0:04:41]} f5 {[%emt 0:02:19]} 26. Qh5 {[%emt 0:02:45]} Qf7 {[%emt 0:00:32]} 27. Qxf7+ {[%emt 0:01:39]} Kxf7 {[%emt 0:00:01]} 28. Rxe4 {[%emt 0:00:10]} dxe4 {[%emt 0:00:14]} 29. h4 {[%emt 0:01:50]} Bxb4 {[%emt 0:01:10]} 30. Ra4 {[%emt 0:01:37]} Be7 {[%emt 0:00:39]} 31. Ra5 {[%emt 0:00:34]} Rd5 {[%emt 0:01:15]} 0-1

[Event "Austrian Championship 2022"]
[Site "Vienna"]
[Date "2022.08.14"]
[Round "3.4"]
[White "Diermair, Andreas"]
[Black "Kilgus, Georg"]
[Result "1/2-1/2"]
[ECO "D11"]
[WhiteElo "2452"]
[BlackElo "2386"]
[Annotator "TA"]
[PlyCount "101"]
[EventDate "2022.08.12"]
[EventType "swiss"]
[EventCountry "AUT"]
[SourceTitle "playchess.com"]
[Source "ChessBase"]
[SourceQuality "1"]
[TimeControl "40/5400+30:1800+30"]

{[%evp 11,101,0,0,0,0,0,0,0,0,0,0,0,0,0,1,0,0,0,4,-49,-51,-47,-40,-23,-6,-68,-59,-54,-56,-66,-54,-100,-15,-15,-9,-12,-17,-75,0,-15,57,64,50,36,50,4,9,-54,-49,-42,-84,-200,-186,-201,-124,-152,-145,-617,-226,-602,0,-181,0,-574,-216,-216,-210,-193,-141,-280,-257,-472,-487,-527,-287,-289,-285,-285,-268,-273,-277,-266,-270,-275,-245,-560,-143,-217,-206,-213,-112,-124]} 1. d4 {[%emt 0:00:03]} d5 {[%emt 0:00:02]} 2. Nf3 {[%emt 0:00:34]} Nf6 {[%emt 0:00:04]} 3. g3 {[%emt 0:01:33]} c6 {[%emt 0:02:38]} 4. Bg2 {[%emt 0:00:57]} Bf5 {[%emt 0:01:18]} 5. c4 {[%emt 0:01:08]} e6 {[%emt 0:00:49]} 6. Nc3 {[%emt 0:00:11]} h6 {[%emt 0:06:17]} 7. Qb3 {[%emt 0:03:19] D11: Slav Defence: 3 Nf3 sidelines and 3...Nf6 4 e3 Bg4.} Qb6 {[%emt 0:00:04]} 8. c5 {[%emt 0:00:29]} Qxb3 {[%emt 0:00:07]} 9. axb3 {[%emt 0:00:03] The position is equal.} Be7 {[%emt 0:00:43]} 10. b4 {[%emt 0:04:18] 10.h3 is the hot move.} a6 {[%emt 0:05:46]} 11. h3 {[%emt 0:06:11]} Nbd7 {[%emt 0:08:45]} 12. g4 {[%emt 0:03:19]} Bh7 {[%emt 0:00:43]} 13. Bf4 {[%emt 0:01:48][%cal Ob4b5]} g5 {[%emt 0:03:03]} 14. Bh2 {[%emt 0:10:08][%cal Ob4b5]} Ne4 {[%emt 0:24:38] [#]} 15. Nd2 $146 {[%emt 0:12:39]} (15. e3 $11) ({Predecessor:} 15. Ne5 Rd8 16. Na4 Nef6 17. Kd2 Nxe5 18. Bxe5 O-O 19. Nb6 Nd7 20. Nxd7 Rxd7 21. e3 {½-½ (57) Dutra,A (2432)-Fuzishawa,R (2289) ICCF email 2012}) 15... Nxd2 $15 {[%emt 0:04:06]} 16. Kxd2 {[%emt 0:00:05][%cal Ob4b5]} Bf6 {[%emt 0:02:23]} 17. e3 {[%emt 0:00:09][%cal Ob4b5]} e5 {[%emt 0:00:18]} 18. f4 {[%emt 0:05:08]} (18. Nxd5 $11 cxd5 19. Bxd5) 18... gxf4 {[%emt 0:03:38]} 19. exf4 {[%emt 0:47:58][%cal Rd4e5]} exd4 {[%emt 0:00:10]} 20. Rhe1+ {[%emt 0:00:00]} Kf8 {[%emt 0:01:26]} 21. Ne2 {[%emt 0:00:00]} (21. Nxd5 $15 {deserves consideration.} cxd5 22. Bxd5) 21... Be4 {[%emt 0:05:36]} (21... d3 $17 22. Ng3 Bxb2) 22. Bxe4 $11 {[%emt 0:00:00]} dxe4 {[%emt 0:00:03]} 23. Ng3 {[%emt 0:00:00]} e3+ {[%emt 0:00:15]} 24. Kd3 {[%emt 0:00:00]} (24. Ke2 $11) 24... b6 {[%emt 0:03:40]} ({Black should play} 24... Bg7 $17 25. Nf5 Nf6 26. Kxd4 Nd5+ 27. Kc4 Bxb2) 25. Nh5 {[%emt 0:00:00]} Be7 {[%emt 0:03:02]} (25... bxc5 $11 26. Nxf6 Nxf6) 26. Kxd4 $14 {[%emt 0:00:00]} bxc5+ {[%emt 0:00:07]} 27. bxc5 {[%emt 0:00:00]} Bxc5+ {[%emt 0:00:07]} 28. Kc4 {[%emt 0:00:00]} (28. Ke4 $14) 28... Rb8 $36 {[%emt 0:09:35][%mdl 2048] Black fights for an advantage.} 29. Re2 {[%emt 0:00:00]} (29. Rxa6 $11 Rb4+ 30. Kc3) 29... Rb4+ $15 {[%emt 0:00:39]} 30. Kc3 {[%emt 0:00:00]} Nb6 {[%emt 0:02:15]} 31. b3 {[%emt 0:00:00] Against Na4+} (31. f5 $17 Nd5+ 32. Kc2) 31... Nd5+ $19 {[%emt 0:00:31]} 32. Kc2 {[%emt 0:00:00]} Re4 {[%emt 0:02:13]} 33. f5 {[%emt 0:00:00]} Ke7 $1 {[%emt 0:01:05]} 34. Kd3 $2 {[%emt 0:00:00][%mdl 8192]} (34. Bg3 $17) 34... Rd4+ {[%emt 0:00:19]} 35. Kc2 {[%emt 0:00:00]} Re4 {[%emt 0:01:29] Prevents Be5.} (35... Rd8 36. f6+ Kf8) 36. Kd3 {[%emt 0:00:00]} Rd4+ {[%emt 0:00:02]} (36... Rb4 $1 37. Kc2 Rb5) 37. Kc2 {[%emt 0:00:00]} Nb4+ $2 {[%emt 0:00:39]} (37... Rd8 38. Rc1 Rd2+ 39. Rxd2 Nb4+ 40. Kb1 Rxd2) 38. Kc3 {[%emt 0:00:00] [#]} Re4 {[%emt 0:00:31]} ({Less strong is} 38... Rd3+ 39. Kc4 Bd4 40. Nf4 Bxa1 41. Nxd3 $14) 39. Ng3 {[%emt 0:03:16]} Rf4 {[%emt 0:01:55]} ({Better is} 39... Nd5+ $19 40. Kc2 Rf4) 40. Ra5 {[%emt 0:02:53] [#]} (40. Nh5 $17 {was called for.} Nd5+ 41. Kc2) 40... Nd5+ $1 {[%emt 0:07:41]} 41. Kb2 $2 {[%emt 0:05:34]} (41. Kc2 {was the only defense.} Bb6 42. Ra4) 41... Bd4+ {[%emt 0:01:43]} 42. Kc1 {[%emt 0:00:09]} Nb4 {[%emt 0:04:57]} 43. f6+ {[%emt 0:02:54]} Kd7 {[%emt 0:16:06]} 44. Rf5 {[%emt 0:00:38] [#]} Re8 $1 {[%emt 0:00:03]} 45. Kd1 {[%emt 0:02:47]} (45. Rxf4 Nd3+) 45... Nd5 {[%emt 0:00:19] aiming for ...Nc3+.} 46. Rxf4 {[%emt 0:03:06]} Nxf4 {[%emt 0:00:04]} 47. Ra2 {[%emt 0:00:06]} Bxf6 {[%emt 0:01:11] And now ...Re6 would win.} ({But not} 47... Nxh3 $2 48. Nf5 e2+ 49. Rxe2 Nf2+ 50. Ke1 Rxe2+ 51. Kxe2 Nxg4 52. Nxd4 Nxh2 53. Kd3) 48. Rxa6 $2 {[%emt 0:01:21]} (48. Nh5 {is a better chance.} Nxh5 49. gxh5) 48... Nxh3 $2 {[%emt 0:04:26]} ({Worse is} 48... e2+ 49. Nxe2 Nxh3 50. Ra7+ Ke6 51. Ra4 $15) (48... Re5 $19 {has better winning chances. ( -> ...Rd5+)} 49. Ra2 Rd5+ 50. Kc2 e2 51. Nxe2 Nxe2 52. Ra7+ Ke6) 49. Ra7+ {[%emt 0:01:02]} (49. Ke2 $17) 49... Ke6 {[%emt 0:00:08]} 50. Ke2 {[%emt 0:02:44]} Bg5 {[%emt 0:00:03]} (50... Nf2 $19 51. Nh5 Nxg4) 51. Nf5 {[%emt 0:02:03] Weighted Error Value: White=0.52/Black=0.58} 1/2-1/2

[Event "Austrian Championship 2022"]
[Site "Vienna"]
[Date "2022.08.14"]
[Round "3.4"]
[White "Ernst, Robert"]
[Black "Spiesberger, Gerhard"]
[Result "1-0"]
[ECO "A98"]
[WhiteElo "2001"]
[BlackElo "1972"]
[Annotator "NA RC"]
[PlyCount "53"]
[EventDate "2022.08.12"]
[EventType "swiss"]
[EventCountry "AUT"]
[SourceTitle "playchess.com"]
[Source "ChessBase"]
[SourceQuality "1"]
[TimeControl "40/5400+30:1800+30"]

1. d4 {[%emt 0:00:03]} e6 {[%emt 0:00:41]} 2. c4 {[%emt 0:00:16]} f5 {[%emt 0:00:23]} 3. Nc3 {[%emt 0:01:27]} Nf6 {[%emt 0:00:43]} 4. Bg5 {[%emt 0:03:04]} Be7 {[%emt 0:01:00]} 5. g3 {[%emt 0:08:13]} O-O {[%emt 0:00:40]} 6. Bg2 {[%emt 0:00:17]} d6 {[%emt 0:04:32]} 7. Nf3 {[%emt 0:06:51]} Qe8 {[%emt 0:00:50]} 8. O-O {[%emt 0:04:27]} Qh5 {[%emt 0:01:03]} 9. Qc2 {[%emt 0:05:35]} Nc6 {[%emt 0:06:19]} 10. Rad1 {[%emt 0:01:26]} e5 {[%emt 0:03:14]} 11. dxe5 {[%emt 0:10:33]} Nxe5 {[%emt 0:01:36]} 12. Bf4 {[%emt 0:10:49]} Nxf3+ {[%emt 0:07:10]} 13. Bxf3 {[%emt 0:00:03]} Ng4 {[%emt 0:00:39]} 14. h4 {[%emt 0:01:05]} g5 {[%emt 0:05:08]} 15. Nd5 {[%emt 0:02:40]} Bd8 {[%emt 0:01:58]} 16. Bxg4 {[%emt 0:00:55]} Qxg4 {[%emt 0:08:07]} 17. Bxg5 {[%emt 0:00:38]} Bxg5 {[%emt 0:01:48]} 18. hxg5 {[%emt 0:00:02]} Qxg5 {[%emt 0:02:23]} 19. Nxc7 {[%emt 0:05:55]} f4 {[%emt 0:00:12]} 20. Qd3 {[%emt 0:04:12]} Bh3 {[%emt 0:07:40]} 21. Nxa8 {[%emt 0:06:00]} Bxf1 {[%emt 0:01:22]} 22. Rxf1 {[%emt 0:06:23]} Rxa8 {[%emt 0:03:35]} 23. Qxd6 {[%emt 0:02:43]} Rd8 {[%emt 0:00:21]} 24. Qxf4 {[%emt 0:18:53]} Qc5 {[%emt 0:06:03]} 25. b3 {[%emt 0:00:00]} b5 {[%emt 0:00:57]} 26. cxb5 {[%emt 0:00:00]} Rf8 {[%emt 0:01:53]} 27. Qc4+ {[%emt 0:01:30]} 1-0

[Event "Austrian Championship 2022"]
[Site "Vienna"]
[Date "2022.08.14"]
[Round "3.5"]
[White "Schwabeneder, Florian"]
[Black "Neumeier, Klaus"]
[Result "1-0"]
[ECO "E34"]
[WhiteElo "2430"]
[BlackElo "2257"]
[Annotator "TA"]
[PlyCount "65"]
[EventDate "2022.08.12"]
[EventType "swiss"]
[EventCountry "AUT"]
[SourceTitle "playchess.com"]
[Source "ChessBase"]
[SourceQuality "1"]
[TimeControl "40/5400+30:1800+30"]

{[%evp 15,65,10,13,2,3,5,8,0,0,0,0,0,0,0,0,0,0,-10,-7,-20,0,0,0,-13,20,16,22,17,30,25,120,113,116,116,172,165,152,161,153,160,264,258,253,247,491,253,510,505,479,477,620,596]} 1. d4 {[%emt 0:00:07]} Nf6 {[%emt 0:00:24]} 2. c4 {[%emt 0:00:34]} e6 {[%emt 0:00:26]} 3. Nc3 {[%emt 0:00:36]} Bb4 {[%emt 0:00:59]} 4. Qc2 {[%emt 0:00:20]} d5 {[%emt 0:03:53]} 5. cxd5 {[%emt 0:00:20]} Qxd5 {[%emt 0:00:56]} 6. Nf3 {[%emt 0:01:06]} Qf5 {[%emt 0:00:29]} 7. Qxf5 {[%emt 0:01:53] The old main line.} exf5 {[%emt 0:00:05]} 8. a3 {[%emt 0:00:13]} Be7 {[%emt 0:08:31]} 9. Bf4 {[%emt 0:01:11] E34: Nimzo-Indian: Classical: 4...d5.} c6 {[%emt 0:00:38]} 10. e3 {[%emt 0:02:15]} Nbd7 {[%emt 0:06:22]} 11. Be2 {[%emt 0:05:58] [#] The position is equal.} Nb6 $146 {[%emt 0:00:49]} ({Predecessor:} 11... O-O 12. O-O Nb6 13. h3 Be6 14. Nd2 Rfe8 15. Rfd1 Nfd5 16. Nxd5 Nxd5 17. Bh2 Rad8 {0-1 (27) Giobbi,C (2278)-Feco,J (2279) ICCF email 2002}) 12. O-O {[%emt 0:07:33]} Be6 {[%emt 0:01:46]} 13. Nd2 {[%emt 0:06:45]} O-O {[%emt 0:01:30]} 14. Rfc1 {[%emt 0:04:34]} Nfd5 {[%emt 0:10:39]} 15. Be5 {[%emt 0:08:56]} Rfd8 {[%emt 0:06:41]} 16. Nxd5 {[%emt 0:11:15]} Nxd5 {[%emt 0:09:16]} 17. Nc4 {[%emt 0:04:30]} a5 {[%emt 0:07:36]} 18. h3 {[%emt 0:04:02]} a4 {[%emt 0:11:32]} 19. Bh2 {[%emt 0:03:27]} c5 {[%emt 0:12:50]} 20. dxc5 {[%emt 0:07:37]} Bxc5 {[%emt 0:00:15]} 21. Bf3 {[%emt 0:05:11]} Ra6 {[%emt 0:07:43]} 22. Rd1 {[%emt 0:06:34]} b5 {[%emt 0:03:49]} (22... Be7 $11) 23. Ne5 $16 {[%emt 0:05:57][%cal Bc4e5,Be5c6,Bc6b8][%mdl 32] aiming for Rac1.} Be7 {[%emt 0:03:17]} 24. Rac1 {[%emt 0:00:26]} Nf6 {[%emt 0:01:19] [#]} (24... Rdd6 $16 25. Rc5 Nf6 26. Rxb5 Rxd1+ 27. Bxd1 Bd6) 25. Rxd8+ $1 $18 {[%emt 0:04:12]} Bxd8 {[%emt 0:00:01] [#]} 26. Nc6 $1 {[%emt 0:00:23]} Bb6 {[%emt 0:00:19]} 27. Be2 {[%emt 0:04:07] White is more active.} Bc4 {[%emt 0:00:47]} (27... Ra8 $16 28. Bxb5 g6) 28. Bxc4 {[%emt 0:00:12]} bxc4 {[%emt 0:00:03]} 29. Rxc4 {[%emt 0:00:15] Nb8 is the strong threat.} g6 $2 {[%emt 0:00:28]} (29... Kf8 {is a better defense.} 30. Bd6+ Ke8) 30. Nb8 {[%emt 0:02:22]} (30. Be5 $142 Nd7 31. Nb8 Nxe5 32. Rc8+ Kg7 33. Nxa6) 30... Ra7 $2 {[%emt 0:01:18]} (30... Ra5 31. Bd6 h6) 31. Rc8+ {[%emt 0:01:46] White is clearly winning.} Kg7 {[%emt 0:00:05]} 32. Be5 {[%emt 0:00:14]} g5 {[%emt 0:00:39]} 33. Bxf6+ {[%emt 0:00:15] Weighted Error Value: White=0.13 (very precise) /Black=0.47} 1-0

[Event "Austrian Championship 2022"]
[Site "Vienna"]
[Date "2022.08.14"]
[Round "3.5"]
[White "Stadlinger, Matthias"]
[Black "Hoegl, Emanuel"]
[Result "1/2-1/2"]
[ECO "B12"]
[WhiteElo "1975"]
[BlackElo "2094"]
[Annotator "NA RC"]
[PlyCount "122"]
[EventDate "2022.08.12"]
[EventType "swiss"]
[EventCountry "AUT"]
[SourceTitle "playchess.com"]
[Source "ChessBase"]
[SourceQuality "1"]
[TimeControl "40/5400+30:1800+30"]

1. e4 {[%emt 0:00:02]} c6 {[%emt 0:00:04]} 2. d4 {[%emt 0:00:03]} d5 {[%emt 0:00:04]} 3. f3 {[%emt 0:00:06]} Qb6 {[%emt 0:00:06]} 4. a4 {[%emt 0:00:08]} a5 {[%emt 0:03:42]} 5. exd5 {[%emt 0:02:25]} cxd5 $14 {[%emt 0:00:30]} 6. Nc3 {[%emt 0:00:19]} e6 {[%emt 0:01:03]} 7. Nb5 {[%emt 0:05:43]} Bd7 {[%emt 0:01:48]} 8. Bf4 {[%emt 0:06:40]} Bxb5 {[%emt 0:00:20]} 9. Bxb5+ {[%emt 0:00:15]} Nc6 {[%emt 0:00:06]} 10. Ne2 {[%emt 0:02:07]} Nf6 {[%emt 0:00:19]} 11. O-O {[%emt 0:04:01]} Be7 {[%emt 0:00:17]} 12. c3 {[%emt 0:14:12]} O-O {[%emt 0:00:06]} 13. Qd2 {[%emt 0:01:12]} Na7 {[%emt 0:09:28]} 14. Bd3 {[%emt 0:05:48]} Rfc8 {[%emt 0:05:03]} 15. g4 {[%emt 0:12:00]} Nc6 {[%emt 0:01:34]} 16. Kh1 {[%emt 0:03:24]} Qd8 {[%emt 0:03:37]} 17. Ng3 {[%emt 0:09:15]} Bd6 {[%emt 0:04:19]} 18. Rae1 {[%emt 0:08:03]} Bxf4 {[%emt 0:05:45]} 19. Qxf4 {[%emt 0:00:04]} Qc7 {[%emt 0:00:09]} 20. Qe3 {[%emt 0:00:23]} Re8 {[%emt 0:16:51]} 21. g5 {[%emt 0:05:14]} Nd7 {[%emt 0:00:08]} 22. f4 {[%emt 0:00:08]} g6 {[%emt 0:04:31]} 23. h4 {[%emt 0:00:59]} Ne7 {[%emt 0:06:01]} 24. Bb5 {[%emt 0:02:09]} Nf5 {[%emt 0:02:49]} 25. Nxf5 {[%emt 0:00:50]} exf5 {[%emt 0:00:05]} 26. Qxe8+ {[%emt 0:00:59]} Rxe8 {[%emt 0:00:04]} 27. Rxe8+ {[%emt 0:00:05]} Nf8 {[%emt 0:00:04]} 28. Re5 {[%emt 0:08:23]} Qd6 {[%emt 0:05:05]} 29. Kg2 {[%emt 0:00:36]} Ne6 {[%emt 0:01:51]} 30. Kg3 {[%emt 0:00:19]} h5 {[%emt 0:17:48]} 31. Rfe1 {[%emt 0:02:33]} Kf8 {[%emt 0:00:15]} 32. R1e2 {[%emt 0:01:45]} Qc7 {[%emt 0:03:30]} 33. Rxe6 {[%emt 0:03:49]} fxe6 {[%emt 0:00:04]} 34. Rxe6 {[%emt 0:00:02]} Kf7 {[%emt 0:01:35]} 35. Re5 {[%emt 0:00:05]} Qd6 {[%emt 0:00:49]} 36. Kf3 {[%emt 0:00:34]} Kf8 {[%emt 0:00:57]} 37. Ke3 {[%emt 0:00:53]} Kg7 {[%emt 0:00:36]} 38. Kd2 {[%emt 0:00:04]} Kf8 {[%emt 0:00:15]} 39. Kc2 {[%emt 0:00:49]} Kg7 {[%emt 0:00:30]} 40. Kb1 {[%emt 0:00:25]} Kf8 {[%emt 0:00:19]} 41. Ka2 {[%emt 0:31:06]} Kg7 {[%emt 0:35:33]} 42. Bd3 {[%emt 0:00:00]} Kf8 {[%emt 0:00:00]} 43. Kb3 {[%emt 0:00:00]} Kg7 {[%emt 0:00:00]} 44. Kc2 {[%emt 0:00:00]} Qd7 {[%emt 0:00:00]} 45. Bb5 {[%emt 0:00:00]} Qd6 {[%emt 0:00:00]} 46. Kd3 {[%emt 0:00:00]} Kf8 {[%emt 0:00:00]} 47. b3 {[%emt 0:01:11]} Kg7 {[%emt 0:00:00]} 48. c4 {[%emt 0:01:46]} Qa3 {[%emt 0:00:00]} 49. cxd5 {[%emt 0:00:49]} Qxb3+ {[%emt 0:00:00]} 50. Ke2 {[%emt 0:00:26]} Qb2+ {[%emt 0:00:00]} 51. Ke3 {[%emt 0:00:36]} Qc1+ {[%emt 0:00:00]} 52. Kd3 {[%emt 0:01:12]} Qd1+ {[%emt 0:00:00]} 53. Ke3 {[%emt 0:00:36]} Qg1+ {[%emt 0:00:00]} 54. Kd3 {[%emt 0:00:20]} Qf1+ {[%emt 0:00:00]} 55. Ke3 {[%emt 0:00:18]} Qc1+ {[%emt 0:04:41]} 56. Kf3 {[%emt 0:02:31]} Qc3+ {[%emt 0:01:08]} 57. Re3 {[%emt 0:00:05]} Qxd4 {[%emt 0:00:30]} 58. Rd3 {[%emt 0:00:07]} Qe4+ {[%emt 0:00:14]} 59. Kg3 {[%emt 0:00:17]} Qe1+ {[%emt 0:02:00]} 60. Kf3 {[%emt 0:00:12]} Qe4+ {[%emt 0:02:25]} 61. Kg3 {[%emt 0:00:08]} Qe1+ {[%emt 0:00:07]} 1/2-1/2